bitfinex-derivatives/quotes_BTCF0:USTF0_20240917
["timestamp","ask_amount","ask_price","bid_price","bid_amount"]
[1726603712394,0.083342,59979.0,59977.0,0.06636012]
[1726603712896,0.083343,59978.0,59977.0,0.06636012]
[1726603713301,0.083345,59977.0,59973.0,0.08521905]
[1726603713605,0.083345,59977.0,59974.0,0.08271814]
[1726603714309,0.083345,59976.0,59975.0,0.20976227]
[1726603714498,0.083345,59976.0,59975.0,0.12704413]
[1726603714696,0.083345,59976.0,59975.0,0.21007433]
[1726603715204,0.083345,59976.0,59975.0,0.12704413]
[1726603716207,0.083345,59976.0,59975.0,0.22654469]
[1726603716803,0.083345,59976.0,59973.0,0.00250091]
[1726603717199,0.083345,59976.0,59973.0,0.08584991]
[1726603717809,0.3608,59980.0,59973.0,0.00250091]
[1726603718001,0.444148,59974.0,59973.0,0.00250091]
[1726603718200,0.734148,59974.0,59973.0,0.00250091]
[1726603719808,0.73832429,59974.0,59973.0,0.00250091]
[1726603720708,0.73832429,59974.0,59971.0,0.083352]
[1726603720910,0.82167329,59974.0,59971.0,0.083352]
[1726603721100,0.73832429,59974.0,59971.0,0.083352]
[1726603721907,0.08335,59973.0,59963.0,0.36330155]
[1726603722498,0.73980429,59974.0,59968.0,0.083356]
[1726603722701,0.73832429,59974.0,59968.0,0.083356]
[1726603723314,0.3608,59970.0,59968.0,0.083356]
[1726603723814,0.3608,59970.0,59969.0,0.22655853]
[1726603724317,0.3608,59970.0,59969.0,0.21041297]
[1726603727214,0.3608,59970.0,59969.0,0.21041297]
[1726603731816,0.3608,59970.0,59969.0,0.083355]
[1726603733912,0.3608,59977.0,59969.0,0.19]
[1726603734114,0.3608,59993.0,59987.0,0.08333]
[1726603734316,0.3650273,59993.0,59986.0,0.19]
[1726603734621,0.3650273,59993.0,59990.0,0.083325]
[1726603735615,0.0042273,59993.0,59992.0,0.083323]
[1726603735915,0.3608,59997.0,59995.0,0.083319]
[1726603736112,0.3608,59997.0,59996.0,0.485818]
[1726603736307,0.36487171,59997.0,59996.0,0.485818]
[1726603736513,0.00407171,59997.0,59996.0,0.485818]
[1726603736812,0.444105,60005.0,59996.0,0.485818]
[1726603737019,0.083306,60004.0,59996.0,0.485818]
[1726603737317,0.36501437,60005.0,59996.0,0.4025]
[1726603737512,0.19,60004.0,59996.0,0.4025]
[1726603738019,0.083309,60002.0,59996.0,0.4025]
[1726603739313,0.083309,60002.0,59995.0,0.79878]
[1726603739314,0.3608,59998.0,59995.0,0.00088]
[1726603739520,0.083318,59996.0,59990.0,0.00422396]
[1726603739714,0.083318,59996.0,59988.0,0.4103]
[1726603739715,0.3608,59998.0,59991.0,0.083324]
[1726603740113,0.29,59999.0,59991.0,0.083324]
[1726603740507,0.29,59999.0,59981.0,0.70522]
[1726603740508,0.7216,59996.0,59972.0,0.06663154]
[1726603740721,0.3608,59976.0,59971.0,0.00425637]
[1726603740916,0.3608,59976.0,59975.0,0.083347]
[1726603741218,0.3608,59976.0,59966.0,0.802]
[1726603741717,0.3608,59976.0,59971.0,0.083351]
[1726603743127,0.3608,59983.0,59971.0,0.083351]
[1726603743128,0.083305,60005.0,59984.0,0.083333]
[1726603743430,0.3608,60006.0,59985.0,0.8091]
[1726603743733,0.083308,60003.0,59989.0,0.083327]
[1726603744027,0.36926272,60006.0,59994.0,0.08332]
[1726603744215,0.3608,60006.0,59994.0,0.08332]
[1726603744421,0.00416298,60012.0,60000.0,0.083312]
[1726603744623,0.3608,60013.0,60000.0,0.083312]
[1726603745225,0.3608,60008.0,59998.0,0.3608]
[1726603745426,0.3608,60008.0,59988.0,0.3608]
[1726603745427,0.29,60007.0,59988.0,0.3608]
[1726603745723,0.4021,60007.0,59995.0,0.3608]
[1726603745931,0.4021,60007.0,59998.0,0.083314]
[1726603746532,0.4021,60007.0,60000.0,0.083311]
[1726603747331,0.4021,60007.0,59997.0,0.083316]
[1726603747926,0.4021,60007.0,59995.0,0.3608]
[1726603748118,0.6921,60007.0,59995.0,0.3608]
[1726603748716,0.3608,60001.0,59989.0,0.083327]
[1726603748921,0.3608,60001.0,59981.0,0.3608]
[1726603748922,0.29,59999.0,59981.0,0.3608]
[1726603749124,0.4119,60000.0,59985.0,0.8091]
[1726603749419,0.4119,60000.0,59990.0,0.083325]
[1726603749720,0.4119,60000.0,59992.0,0.083323]
[1726603749926,0.4119,60000.0,59975.0,0.3608]
[1726603749927,0.373322,59993.0,59975.0,0.3608]
[1726603750125,0.3608,59985.0,59975.0,0.3608]
[1726603750429,0.8069,59984.0,59975.0,0.3608]
[1726603752431,0.890234,59984.0,59975.0,0.3608]
[1726603753032,0.89431385,59984.0,59975.0,0.3608]
[1726603753427,0.89431385,59984.0,59975.0,0.444146]
[1726603754128,0.89431385,59984.0,59975.0,0.3608]
[1726603755339,0.89431385,59984.0,59977.0,0.083344]
[1726603758049,0.89431385,59984.0,59978.0,0.083343]
[1726603758255,0.89431385,59984.0,59979.0,0.083341]
[1726603758747,0.90131385,59984.0,59979.0,0.083341]
[1726603760436,0.3608,59980.0,59977.0,0.001]
[1726603760644,0.083343,59978.0,59971.0,0.083352]
[1726603760841,0.083341,59979.0,59978.0,0.001]
[1726603761146,0.373341,59979.0,59978.0,0.001]
[1726603761345,0.372341,59979.0,59972.0,0.083351]
[1726603761544,0.372341,59979.0,59969.0,0.3608]
[1726603761855,0.297,59979.0,59978.0,0.001]
[1726603762043,0.297,59979.0,59978.0,0.084343]
[1726603762435,0.292,59979.0,59978.0,0.083343]
[1726603762644,0.292,59979.0,59974.0,0.083347]
[1726603763853,0.292,59979.0,59976.0,0.083345]
[1726603764156,0.008,59979.0,59978.0,0.001]
[1726603764651,0.63594,59980.0,59976.0,0.083345]
[1726603764846,0.004,59979.0,59977.0,0.083344]
[1726603765060,0.004,59979.0,59969.0,0.3608]
[1726603765249,0.19,59977.0,59974.0,0.083347]
[1726603765748,0.004,59979.0,59969.0,0.3608]
[1726603765950,0.3608,59980.0,59969.0,0.3608]
[1726603766155,0.009,59979.0,59978.0,0.001]
[1726603766856,0.009,59979.0,59978.0,0.084343]
[1726603767449,0.3608,59980.0,59978.0,0.083343]
[1726603767854,0.3608,59980.0,59969.0,0.3608]
[1726603768052,0.19,59977.0,59974.0,0.083347]
[1726603768260,0.19,59977.0,59976.0,0.083345]
[1726603768760,0.189,59977.0,59976.0,0.083345]
[1726603769149,0.193,59977.0,59976.0,0.083345]
[1726603769457,0.194,59977.0,59969.0,0.3608]
[1726603769665,0.19,59975.0,59972.0,0.083351]
[1726603770760,0.189,59975.0,59972.0,0.083351]
[1726603771458,0.191,59975.0,59972.0,0.083351]
[1726603772562,0.002,59975.0,59972.0,0.083351]
[1726603775951,0.002,59975.0,59973.0,0.083349]
[1726603777358,0.003,59975.0,59970.0,0.3608]
[1726603777665,0.003,59975.0,59974.0,0.083348]
[1726603778366,0.00412339,59977.0,59974.0,0.083348]
[1726603778566,0.273341,59979.0,59976.0,0.083345]
[1726603778567,0.19,59979.0,59976.0,0.083345]
[1726603779262,0.19416311,59979.0,59970.0,0.3608]
[1726603780066,0.004,59975.0,59970.0,0.3608]
[1726603780268,0.004,59975.0,59974.0,0.083348]
[1726603780569,0.19416311,59979.0,59974.0,0.083348]
[1726603781068,0.19416311,59979.0,59970.0,0.3608]
[1726603781362,0.19416311,59979.0,59975.0,0.083346]
[1726603781968,0.19816311,59979.0,59975.0,0.083346]
[1726603782663,0.28150511,59979.0,59970.0,0.3608]
[1726603783256,0.27750511,59979.0,59970.0,0.3608]
[1726603783563,0.00416311,59979.0,59978.0,0.083343]
[1726603783763,0.3608,59980.0,59978.0,0.083343]
[1726603784562,0.36492491,59980.0,59978.0,0.083343]
[1726603784963,0.37392491,59980.0,59978.0,0.084343]
[1726603786175,0.37392491,59980.0,59979.0,0.083341]
[1726603788779,0.37392491,59980.0,59979.0,0.084341]
[1726603788780,0.56492491,59980.0,59979.0,0.084341]
[1726603790170,0.20412491,59980.0,59979.0,0.084341]
[1726603792365,0.01412491,59980.0,59979.0,0.001]
[1726603792578,0.20412491,59980.0,59979.0,0.001]
[1726603795277,0.28746491,59980.0,59979.0,0.001]
[1726603795467,0.20412491,59980.0,59979.0,0.001]
[1726603796677,0.28746491,59980.0,59979.0,0.001]
[1726603797583,0.28384491,59980.0,59979.0,0.001]
[1726603800377,0.09384491,59980.0,59979.0,0.001]
[1726603800676,0.28384491,59980.0,59979.0,0.001]
[1726603802189,0.20050491,59980.0,59979.0,0.001]
[1726603803290,0.09384491,59980.0,59979.0,0.001]
[1726603803588,0.28384491,59980.0,59979.0,0.001]
[1726603806086,0.01050491,59980.0,59979.0,0.084341]
[1726603806383,0.01050491,59980.0,59979.0,0.001]
[1726603806593,0.01050491,59980.0,59979.0,0.084341]
[1726603807084,0.00184,59990.0,59989.0,0.083327]
[1726603807290,0.3608,60001.0,59989.0,0.19]
[1726603807480,0.444112,60001.0,59992.0,0.083323]
[1726603807675,0.444112,60001.0,59991.0,0.3608]
[1726603807676,0.36911033,60001.0,59995.0,0.083319]
[1726603808384,0.01,60000.0,59991.0,0.3608]
[1726603808589,0.01,60000.0,59996.0,0.083317]
[1726603808784,0.01,60000.0,59991.0,0.444123]
[1726603808990,0.38323254,60001.0,59995.0,0.001]
[1726603809382,0.37323254,60001.0,59993.0,0.083321]
[1726603809584,0.01,60000.0,59991.0,0.001]
[1726603809891,0.19,59992.0,59991.0,0.001]
[1726603810081,0.773403,59992.0,59991.0,0.001]
[1726603810281,1.456726,59992.0,59991.0,0.001]
[1726603810682,0.083336,59983.0,59980.0,0.3608]
[1726603810882,0.5508,59981.0,59974.0,0.083348]
[1726603811091,0.5508,59981.0,59973.0,1.14004]
[1726603811289,0.5508,59981.0,59977.0,0.083344]
[1726603811487,0.19,59981.0,59977.0,0.083344]
[1726603811694,0.19,59981.0,59973.0,1.223389]
[1726603811889,0.19,59976.0,59974.0,0.083347]
[1726603812487,0.19,59976.0,59975.0,0.083347]
[1726603812690,0.19,59980.0,59976.0,0.083345]
[1726603813391,0.19,59980.0,59978.0,0.083342]
[1726603814685,0.193,59980.0,59978.0,0.083342]
[1726603815285,0.193,59980.0,59978.0,0.084342]
[1726603816089,0.193,59980.0,59978.0,0.001]
[1726603818198,0.583501,59979.0,59978.0,0.001]
[1726603818394,0.083361,59965.0,59960.0,0.3608]
[1726603818603,0.19,59961.0,59960.0,0.3608]
[1726603819985,0.194159,59961.0,59960.0,0.3608]
[1726603820189,0.004159,59961.0,59960.0,0.444168]
[1726603820397,0.19,59964.0,59960.0,0.444168]
[1726603820590,0.19815035,59964.0,59960.0,0.3608]
[1726603821285,0.19815035,59964.0,59958.0,0.75788]
[1726603821286,0.19,59961.0,59958.0,0.75788]
[1726603821489,0.197,59961.0,59960.0,0.001]
[1726603821886,0.19,59961.0,59958.0,0.75784]
[1726603822092,0.19,59961.0,59960.0,0.001]
[1726603822500,0.197,59961.0,59960.0,0.001]
[1726603823604,0.007,59961.0,59960.0,0.001]
[1726603824303,0.01108997,59961.0,59960.0,0.001]
[1726603828113,0.3608,59967.0,59960.0,0.001]
[1726603828400,0.3608,59973.0,59966.0,0.19]
[1726603828601,0.3608,59973.0,59972.0,0.273351]
[1726603828806,0.3608,59973.0,59972.0,0.083351]
[1726603829202,0.00411834,59975.0,59974.0,0.083348]
[1726603829403,0.7304,59995.0,59976.0,0.083345]
[1726603829606,0.19,59994.0,59987.0,0.3608]
[1726603829903,0.19,59994.0,59987.0,0.44413]
[1726603830205,0.19,59990.0,59987.0,0.3608]
[1726603831508,0.194,59990.0,59987.0,0.3618]
[1726603833108,0.198,59990.0,59987.0,0.3628]
[1726603835016,0.00412535,59995.0,59987.0,0.3628]
[1726603835203,0.3208,60030.0,59987.0,0.3628]
[1726603835204,0.19,60029.0,59994.0,0.5508]
[1726603835403,0.00176,60028.0,60023.0,0.08328]
[1726603835599,0.00176,60028.0,60024.0,0.3608]
[1726603835808,0.19,60029.0,60024.0,0.3608]
[1726603836004,0.19,60025.0,60019.0,0.3608]
[1726603836202,0.194,60029.0,60019.0,0.3608]
[1726603836411,0.194,60029.0,60024.0,0.3608]
[1726603836717,0.003,60028.0,60024.0,0.3608]
[1726603837208,0.003,60028.0,60027.0,0.083275]
[1726603838109,0.00817418,60033.0,60027.0,0.083275]
[1726603838612,0.00817418,60033.0,60027.0,0.084275]
[1726603838821,0.00817418,60033.0,60029.0,0.3608]
[1726603839914,0.19,60034.0,60029.0,0.3608]
[1726603840508,0.19816334,60034.0,60029.0,0.3608]
[1726603841716,0.19816334,60034.0,60029.0,0.3618]
[1726603841904,0.63407,60030.0,60029.0,0.002]
[1726603842106,1.1508,60030.0,60018.0,0.3608]
[1726603842421,0.19,60019.0,60018.0,0.3608]
[1726603842603,0.19,60019.0,60011.0,0.3608]
[1726603842808,0.19,60014.0,60011.0,0.3608]
[1726603843918,0.29,60016.0,60013.0,0.083294]
[1726603844119,0.404073,60029.0,60011.0,0.3618]
[1726603844120,0.29,60025.0,60011.0,0.3618]
[1726603844313,0.32561766,60029.0,60024.0,0.3608]
[1726603844507,0.00481766,60029.0,60024.0,0.3608]
[1726603844713,0.29,60036.0,60024.0,0.3608]
[1726603845410,0.29838554,60036.0,60024.0,0.3608]
[1726603845916,0.002,60034.0,60032.0,0.3608]
[1726603846218,0.002,60034.0,60033.0,0.083266]
[1726603846419,0.00469708,60036.0,60033.0,0.083266]
[1726603846622,0.292,60036.0,60032.0,0.3608]
[1726603846920,0.29,60033.0,60025.0,0.00084]
[1726603847114,0.29,60026.0,60024.0,0.3618]
[1726603847317,0.29,60026.0,60024.0,0.445079]
[1726603847722,0.29,60030.0,60024.0,0.445079]
[1726603847922,0.29,60030.0,60029.0,0.3608]
[1726603848218,0.29,60035.0,60029.0,0.3608]
[1726603848417,0.003,60036.0,60029.0,0.3608]
[1726603848612,0.001,60036.0,60029.0,0.3608]
[1726603848815,0.001,60034.0,60033.0,0.083266]
[1726603849416,0.29213885,60040.0,60032.0,0.001]
[1726603849611,0.29,60035.0,60032.0,0.001]
[1726603850418,0.29,60035.0,60032.0,0.084267]
[1726603851118,0.29,60035.0,60032.0,0.083267]
[1726603851317,0.001,60034.0,60033.0,0.001]
[1726603852017,0.001,60034.0,60032.0,0.083267]
[1726603852018,0.084264,60035.0,60032.0,0.001]
[1726603852214,0.373266,60033.0,60032.0,0.001]
[1726603852414,0.001,60035.0,60032.0,0.001]
[1726603852415,0.50072,60035.0,60032.0,0.001]
[1726603852620,0.291,60035.0,60032.0,0.001]
[1726603852813,0.001,60034.0,60033.0,0.001]
[1726603854421,0.001,60034.0,60029.0,0.3608]
[1726603854422,0.291,60035.0,60032.0,0.002]
[1726603854609,0.374264,60035.0,60032.0,0.002]
[1726603854813,0.083265,60034.0,60032.0,0.002]
[1726603855224,0.084265,60034.0,60033.0,0.001]
[1726603855713,0.583985,60034.0,60033.0,0.001]
[1726603856025,0.959185,60034.0,60033.0,0.001]
[1726603856419,0.959185,60034.0,60032.0,0.001]
[1726603856718,0.459465,60034.0,60033.0,0.001]
[1726603857319,0.959185,60034.0,60033.0,0.001]
[1726603857814,0.459465,60034.0,60033.0,0.001]
[1726603858123,0.4642545,60034.0,60033.0,0.002]
[1726603858710,0.4642545,60034.0,60033.0,0.001]
[1726603859418,0.4642545,60034.0,60033.0,0.002]
[1726603860316,0.0057895,60034.0,60033.0,0.085266]
[1726603860614,0.0057895,60034.0,60033.0,0.002]
[1726603861123,0.0890545,60034.0,60033.0,0.002]
[1726603861513,0.6890545,60034.0,60033.0,0.002]
[1726603861718,0.8787745,60034.0,60033.0,0.002]
[1726603862123,0.3790545,60034.0,60033.0,0.002]
[1726603862619,0.3790545,60034.0,60033.0,0.001]
[1726603862811,0.3790545,60034.0,60033.0,0.002]
[1726603863019,0.2957895,60034.0,60033.0,0.002]
[1726603863221,0.0057895,60034.0,60033.0,0.001]
[1726603863420,0.0057895,60034.0,60033.0,0.002]
[1726603863819,0.2957895,60034.0,60033.0,0.002]
[1726603864423,0.2957895,60034.0,60020.0,0.00092]
[1726603864424,1.1887745,60034.0,60020.0,0.3608]
[1726603864630,0.29,60022.0,60020.0,0.3608]
[1726603865130,0.083283,60021.0,60020.0,0.3608]
[1726603865428,0.083291,60015.0,60014.0,0.3608]
[1726603865628,0.3608,60016.0,60004.0,0.7433]
[1726603865829,0.083287,60018.0,60004.0,0.7433]
[1726603865830,0.29,60009.0,60004.0,0.7433]
[1726603866020,0.19,60009.0,60004.0,0.7433]
[1726603866327,0.189,60009.0,60004.0,0.7433]
[1726603866532,0.3608,60018.0,60004.0,0.7433]
[1726603866533,0.083302,60008.0,60004.0,0.7433]
[1726603866831,0.19,60005.0,60004.0,0.7433]
[1726603867221,0.189,60005.0,60004.0,0.7433]
[1726603868623,0.192,60005.0,60004.0,0.3608]
[1726603868834,1.29196,60005.0,59990.0,0.3608]
[1726603869030,1.29196,60005.0,59984.0,0.3608]
[1726603869031,0.083332,59986.0,59984.0,0.3608]
[1726603869222,0.273333,59985.0,59979.0,0.3608]
[1726603869528,0.19,59980.0,59979.0,0.3608]
[1726603870032,0.29,59980.0,59979.0,0.3608]
[1726603870225,0.29,59985.0,59979.0,0.3608]
[1726603870430,0.289,59985.0,59979.0,0.3608]
[1726603871231,0.004,59980.0,59979.0,0.3618]
[1726603871531,0.004,59980.0,59979.0,0.3648]
[1726603871932,0.289,59985.0,59979.0,0.3618]
[1726603871933,0.295,59985.0,59979.0,0.3618]
[1726603872133,0.299,59985.0,59979.0,0.3628]
[1726603872633,0.006,59980.0,59979.0,0.3628]
[1726603873028,0.004,59985.0,59984.0,0.083334]
[1726603873334,0.01,59985.0,59984.0,1.044134]
[1726603873630,0.006,59985.0,59984.0,1.044134]
[1726603874139,0.006,59985.0,59984.0,0.944254]
[1726603874435,0.014,59985.0,59984.0,0.3618]
[1726603874732,0.014,59985.0,59984.0,0.86192]
[1726603874929,0.008,59985.0,59984.0,0.3618]
[1726603875120,0.00438,59985.0,59984.0,0.86192]
[1726603875325,0.00438,59985.0,59984.0,0.3618]
[1726603875722,0.00438,59985.0,59984.0,0.3628]
[1726603876620,0.00438,59985.0,59984.0,0.002]
[1726603876941,0.00438,59985.0,59984.0,0.3628]
[1726603877529,0.00438,59985.0,59984.0,0.446134]
[1726603879638,0.00438,59985.0,59984.0,0.3628]
[1726603880546,0.00438,59985.0,59984.0,0.446134]
[1726603881240,0.373319,59996.0,59984.0,0.446134]
[1726603881535,0.37796151,59996.0,59989.0,0.3608]
[1726603882631,0.3608,59993.0,59984.0,0.3628]
[1726603882834,0.29,59988.0,59984.0,0.3618]
[1726603883030,0.444133,59985.0,59984.0,0.001]
[1726603883228,0.083344,59977.0,59976.0,0.3608]
[1726603883535,0.373344,59977.0,59976.0,0.3608]
[1726603884140,0.372344,59977.0,59976.0,0.3608]
[1726603885246,1.3902,59977.0,59963.0,0.72114]
[1726603885432,0.29,59964.0,59963.0,0.3608]
[1726603885942,0.444007,59976.0,59965.0,0.08336]
[1726603886131,0.29,59971.0,59965.0,0.08336]
[1726603887539,0.29,59971.0,59965.0,0.08436]
[1726603888229,0.29,59971.0,59965.0,0.002]
[1726603888430,0.00472717,59971.0,59969.0,0.3608]
[1726603888633,0.29,59970.0,59969.0,0.3608]
[1726603889640,0.29,59970.0,59969.0,0.3618]
[1726603889842,0.302,59970.0,59969.0,0.3618]
[1726603890433,0.315,59970.0,59969.0,0.3618]
[1726603892743,0.315,59970.0,59963.0,0.41077182]
[1726603892744,0.27990172,59970.0,59963.0,0.41077182]
[1726603893043,0.29,59967.0,59963.0,0.3608]
[1726603893246,0.29,59967.0,59957.0,0.42720752]
[1726603893247,0.08337,59958.0,59957.0,0.04997182]
[1726603893431,0.083377,59954.0,59951.0,0.04997182]
[1726603893629,0.29,59952.0,59951.0,0.04966992]
[1726603893836,0.29,59952.0,59947.0,0.06640752]
[1726603894028,0.083395,59941.0,59933.0,0.09950056]
[1726603894229,0.083395,59941.0,59930.0,0.3608]
[1726603894230,0.29,59934.0,59930.0,0.3608]
[1726603894433,0.3608,59937.0,59930.0,0.36064]
[1726603894638,0.29,59931.0,59926.0,0.09950056]
[1726603894841,0.29,59931.0,59921.0,0.083422]
[1726603895047,0.29,59931.0,59922.0,0.12714085]
[1726603895235,0.289,59931.0,59923.0,0.12714085]
[1726603895438,0.3608,59932.0,59924.0,0.12714605]
[1726603895644,0.3608,59927.0,59920.0,0.3608]
[1726603895831,0.3608,59927.0,59921.0,0.12715184]
[1726603896143,1.4614,59927.0,59926.0,0.006]
[1726603896349,0.3608,59927.0,59926.0,0.006]
[1726603896532,0.6508,59927.0,59914.0,0.09950056]
[1726603896840,0.6508,59927.0,59909.0,0.38956335]
[1726603896841,0.001,59931.0,59923.0,0.3608]
[1726603897052,0.00676478,59932.0,59924.0,0.51196124]
[1726603897244,0.00676478,59932.0,59926.0,0.083415]
[1726603897441,0.29676478,59932.0,59927.0,0.12716124]
[1726603897646,0.29676478,59932.0,59928.0,0.12716124]
[1726603897948,0.29676478,59932.0,59926.0,0.083415]
[1726603898251,0.29476478,59932.0,59927.0,0.12714134]
[1726603898437,0.29476478,59932.0,59928.0,0.12714222]
[1726603898438,0.29,59932.0,59928.0,0.12714222]
[1726603898639,0.29,59932.0,59924.0,0.48430056]
[1726603898936,0.29,59932.0,59925.0,0.12714175]
[1726603899138,0.29,59932.0,59926.0,0.12714175]
[1726603899447,0.297,59932.0,59928.0,0.084412]
[1726603899747,0.297,59932.0,59929.0,0.12714175]
[1726603899949,0.297,59932.0,59928.0,0.084412]
[1726603899950,0.295,59932.0,59930.0,0.12714076]
[1726603900153,0.295,59932.0,59928.0,0.083412]
[1726603900739,0.298,59932.0,59928.0,0.083412]
[1726603900947,0.29438,59932.0,59929.0,0.12714166]
[1726603901250,0.21090007,59932.0,59930.0,0.21054894]
[1726603901446,0.21090007,59932.0,59931.0,0.12713994]
[1726603901945,0.20890007,59932.0,59931.0,0.12713994]
[1726603902245,1.11356,59932.0,59928.0,0.001]
[1726603902447,0.3608,59929.0,59919.0,0.18292456]
[1726603902642,0.289,59922.0,59920.0,0.12715034]
[1726603902945,0.289,59922.0,59921.0,0.12715034]
[1726603903146,0.29,59927.0,59921.0,0.12715034]
[1726603903353,0.29,59927.0,59922.0,0.21057034]
[1726603903552,0.29,59927.0,59923.0,0.2266509]
[1726603903748,0.29,59927.0,59924.0,0.12714769]
[1726603903949,0.6508,59927.0,59925.0,0.12714769]
[1726603904256,0.6508,59927.0,59926.0,0.12715532]
[1726603904450,0.3608,59927.0,59926.0,0.28192458]
[1726603905053,0.3648,59927.0,59926.0,0.28192458]
[1726603905551,0.3648,59927.0,59926.0,0.36533958]
[1726603905750,0.3658,59927.0,59926.0,0.36533958]
[1726603906743,0.009,59927.0,59926.0,0.36533958]
[1726603906942,0.009,59927.0,59926.0,0.54771561]
[1726603907144,0.3608,59934.0,59933.0,0.083405]
[1726603907349,0.3608,59934.0,59933.0,0.36532958]
[1726603907649,0.36544462,59934.0,59933.0,0.28192458]
[1726603907848,1.21700337,59934.0,59930.0,0.11543643]
[1726603908047,0.29,59931.0,59924.0,0.083417]
[1726603908350,0.3957,59933.0,59925.0,0.18237087]
[1726603908351,0.083409,59930.0,59925.0,0.18237087]
[1726603908648,0.29,59926.0,59917.0,0.3608]
[1726603908844,0.29,59926.0,59918.0,0.18238221]
[1726603909054,0.29,59926.0,59919.0,0.18238221]
[1726603909248,0.29,59926.0,59917.0,0.3608]
[1726603909447,0.3608,59929.0,59918.0,0.26581054]
[1726603909650,0.3608,59929.0,59919.0,0.18238554]
[1726603909947,0.3608,59929.0,59920.0,0.18238554]
[1726603910249,0.3608,59929.0,59918.0,0.13189261]
[1726603910250,0.3608,59929.0,59921.0,0.18238554]
[1726603910448,0.3608,59929.0,59922.0,0.18238554]
[1726603910646,0.3608,59929.0,59923.0,0.18238554]
[1726603910847,0.3608,59929.0,59923.0,0.083418]
[1726603911045,0.3608,59929.0,59928.0,0.083412]
[1726603911250,0.3608,59929.0,59922.0,0.3608]
[1726603911550,0.3608,59929.0,59924.0,0.09905024]
[1726603911949,0.3608,59929.0,59925.0,0.083416]
[1726603912151,0.3668,59929.0,59928.0,0.001]
[1726603912745,0.3628,59929.0,59927.0,0.3678]
[1726603913652,0.3628,59929.0,59927.0,0.84985024]
[1726603914158,0.3628,59929.0,59927.0,0.3678]
[1726603914358,0.31271045,59929.0,59927.0,0.3678]
[1726603914553,0.31071045,59929.0,59927.0,0.3678]
[1726603914758,0.40012145,59929.0,59928.0,0.001]
[1726603915055,0.69012145,59929.0,59928.0,0.001]
[1726603915454,0.69412145,59929.0,59928.0,0.001]
[1726603915654,0.083418,59925.0,59920.0,0.09905024]
[1726603915860,0.60471045,59929.0,59920.0,0.09905024]
[1726603915861,0.29,59923.0,59920.0,0.09905024]
[1726603916160,0.29,59923.0,59919.0,0.09905024]
[1726603916350,0.29,59923.0,59920.0,0.09905024]
[1726603916552,0.29,59923.0,59921.0,0.09905024]
[1726603917359,0.373414,59927.0,59920.0,0.10205024]
[1726603917556,0.373414,59927.0,59921.0,0.09905024]
[1726603917753,0.373414,59927.0,59922.0,0.09905024]
[1726603918053,0.37811201,59927.0,59923.0,0.09905024]
[1726603919354,0.37811201,59927.0,59922.0,0.09905024]
[1726603919555,0.37811201,59927.0,59919.0,0.083424]
[1726603920263,0.29469801,59927.0,59917.0,0.45985024]
[1726603920445,0.29569801,59927.0,59918.0,0.09905024]
[1726603920649,0.29569801,59927.0,59921.0,0.083421]
[1726603920846,0.29,59922.0,59917.0,0.3608]
[1726603921059,0.29,59922.0,59895.0,0.3688]
[1726603921060,1.22228,59921.0,59895.0,0.3688]
[1726603921357,0.29,59910.0,59899.0,0.3608]
[1726603921557,0.286,59910.0,59900.0,0.15480877]
[1726603921750,0.286,59910.0,59898.0,0.083453]
[1726603922166,0.285,59910.0,59898.0,0.083453]
[1726603922460,0.29,59906.0,59899.0,0.15481982]
[1726603922657,0.3608,59906.0,59900.0,0.15481982]
[1726603922853,0.3608,59906.0,59901.0,0.2106439]
[1726603923167,0.00485687,59906.0,59905.0,0.083444]
[1726603923456,0.001,59910.0,59905.0,0.28200473]
[1726603923657,0.29475695,59911.0,59906.0,0.1271939]
[1726603923855,0.29475695,59911.0,59903.0,0.3608]
[1726603923856,0.29475695,59911.0,59907.0,0.1271939]
[1726603924058,0.29475695,59911.0,59908.0,0.1271939]
[1726603924258,0.29475695,59911.0,59909.0,0.1271939]
[1726603924259,0.001,59910.0,59909.0,0.1271939]
[1726603924563,0.001,59910.0,59909.0,0.21040081]
[1726603924762,0.00475695,59911.0,59909.0,0.1271939]
[1726603924958,0.002,59911.0,59903.0,0.3608]
[1726603925164,0.002,59911.0,59900.0,0.005]
[1726603925165,0.6508,59904.0,59893.0,0.1164941]
[1726603925351,0.6508,59904.0,59881.0,0.3608]
[1726603925352,0.6508,59894.0,59881.0,0.3608]
[1726603925659,0.6508,59894.0,59888.0,0.08315123]
[1726603925965,0.64718,59894.0,59887.0,0.08315123]
[1726603926264,0.60541195,59894.0,59887.0,0.08315123]
[1726603926458,0.60541195,59894.0,59886.0,0.3608]
[1726603926758,0.3844,59903.0,59888.0,0.08315123]
[1726603926759,0.29,59899.0,59888.0,0.08315123]
[1726603926955,0.29,59899.0,59892.0,0.08315123]
[1726603927156,0.007,59894.0,59892.0,0.08315123]
[1726603927351,0.29,59893.0,59890.0,0.08315123]
[1726603927652,0.29,59893.0,59889.0,0.08315123]
[1726603928259,0.29,59893.0,59888.0,0.08315123]
[1726603928467,0.29,59893.0,59887.0,0.08315123]
[1726603928762,0.29,59893.0,59886.0,0.44395123]
[1726603929165,0.006,59894.0,59886.0,0.52742123]
[1726603929359,0.006,59894.0,59888.0,0.08315123]
[1726603929560,0.01072554,59894.0,59888.0,0.08315123]